[Event "Titled Tuesday Blitz August 02 Early 2022"]
[White "Papasimakopoulos, Alexandros"]
[Black "Aaditya Dhingra"]
[WhiteFideId "4244125"]
[BlackFideId "25678191"]
[WhiteElo "2340"]
[BlackElo "1849"]
[Result "1/2-1/2"]
[Round "09"]
[TimeControl "180+1"]
[Date "2022.08.02"]
[WhiteClock "0:01:44"]
[BlackClock "0:00:19"]

1. d4 {[%clk 0:03:00]}  Nf6 {[%clk 0:02:59]} 2. c4 {[%clk 0:03:01]}  e6 {[%clk 0:02:59]} 3. Nc3 {[%clk 0:03:02]}  Bb4 {[%clk 0:02:57]} 4. Qc2 {[%clk 0:03:02]}  b6 {[%clk 0:02:56]} 5. a3 {[%clk 0:03:02]}  Bxc3+ {[%clk 0:02:56]} 6. Qxc3 {[%clk 0:03:03]}  Bb7 {[%clk 0:02:56]} 7. f3 {[%clk 0:03:03]}  c5 {[%clk 0:02:55]} 8. dxc5 {[%clk 0:03:03]}  bxc5 {[%clk 0:02:54]} 9. Bg5 {[%clk 0:03:03]}  O-O {[%clk 0:02:50]} 10. Rd1 {[%clk 0:03:01]}  d5 {[%clk 0:02:46]} 11. Bxf6 {[%clk 0:02:59]}  Qxf6 {[%clk 0:02:45]} 12. Qxf6 {[%clk 0:02:59]}  gxf6 {[%clk 0:02:46]} 13. cxd5 {[%clk 0:02:59]}  exd5 {[%clk 0:02:46]} 14. e3 {[%clk 0:02:59]}  Re8 {[%clk 0:02:45]} 15. Kf2 {[%clk 0:02:59]}  Nd7 {[%clk 0:02:46]} 16. Bb5 {[%clk 0:02:59]}  Re7 {[%clk 0:02:42]} 17. Bxd7 {[%clk 0:02:59]}  Rxd7 {[%clk 0:02:41]} 18. Ne2 {[%clk 0:03:00]}  Rb8 {[%clk 0:02:36]} 19. Rd2 {[%clk 0:03:00]}  Bc6 {[%clk 0:02:30]} 20. Rc1 {[%clk 0:03:00]}  c4 {[%clk 0:02:28]} 21. Nc3 {[%clk 0:02:54]}  Kf8 {[%clk 0:02:23]} 22. Rcc2 {[%clk 0:02:53]}  Rb3 {[%clk 0:02:20]} 23. e4 {[%clk 0:02:49]}  d4 {[%clk 0:01:44]} 24. Nd5 {[%clk 0:02:44]}  Bxd5 {[%clk 0:01:39]} 25. exd5 {[%clk 0:02:45]}  c3 {[%clk 0:01:36]} 26. bxc3 {[%clk 0:02:40]}  dxc3 {[%clk 0:01:36]} 27. Rd3 {[%clk 0:02:40]}  Rxa3 {[%clk 0:01:33]} 28. d6 {[%clk 0:02:37]}  Ra6 {[%clk 0:01:27]} 29. Rcxc3 {[%clk 0:02:35]}  Raxd6 {[%clk 0:01:26]} 30. Rxd6 {[%clk 0:02:35]}  Rxd6 {[%clk 0:01:26]} 31. Rc8+ {[%clk 0:02:35]}  Kg7 {[%clk 0:01:24]} 32. h4 {[%clk 0:02:35]}  a5 {[%clk 0:01:21]} 33. Ra8 {[%clk 0:02:34]}  Rd2+ {[%clk 0:01:20]} 34. Kg3 {[%clk 0:02:34]}  Ra2 {[%clk 0:01:19]} 35. Ra7 {[%clk 0:02:34]}  h5 {[%clk 0:01:18]} 36. Ra8 {[%clk 0:02:34]}  a4 {[%clk 0:01:17]} 37. Ra5 {[%clk 0:02:34]}  Kg6 {[%clk 0:01:16]} 38. Ra8 {[%clk 0:02:34]}  a3 {[%clk 0:01:16]} 39. Rg8+ {[%clk 0:02:34]}  Kf5 {[%clk 0:01:15]} 40. Rh8 {[%clk 0:02:35]}  Kg6 {[%clk 0:01:13]} 41. Rg8+ {[%clk 0:02:35]}  Kh7 {[%clk 0:01:14]} 42. Ra8 {[%clk 0:02:36]}  Ra1 {[%clk 0:01:13]} 43. Kf4 {[%clk 0:02:36]}  Ra2 {[%clk 0:01:00]} 44. g3 {[%clk 0:02:30]}  Kg7 {[%clk 0:00:58]} 45. Kf5 {[%clk 0:02:30]}  Ra1 {[%clk 0:00:53]} 46. Ra7 {[%clk 0:02:17]}  a2 {[%clk 0:00:53]} 47. Kf4 {[%clk 0:02:17]}  Kg6 {[%clk 0:00:48]} 48. Ra6 {[%clk 0:02:18]}  Kg7 {[%clk 0:00:46]} 49. Ra8 {[%clk 0:02:17]}  Kh7 {[%clk 0:00:34]} 50. Ra5 {[%clk 0:02:14]}  Kg8 {[%clk 0:00:32]} 51. Ra8+ {[%clk 0:02:04]}  Kg7 {[%clk 0:00:33]} 52. Ra5 {[%clk 0:02:05]}  Kf8 {[%clk 0:00:33]} 53. Kf5 {[%clk 0:01:59]}  Rf1 {[%clk 0:00:30]} 54. Rxa2 {[%clk 0:01:57]}  Rxf3+ {[%clk 0:00:29]} 55. Ke4 {[%clk 0:01:56]}  Rxg3 {[%clk 0:00:28]} 56. Kf5 {[%clk 0:01:56]}  Rg4 {[%clk 0:00:27]} 57. Kxf6 {[%clk 0:01:55]}  Rf4+ {[%clk 0:00:23]} 58. Kg5 {[%clk 0:01:55]}  Rd4 {[%clk 0:00:22]} 59. Kf6 {[%clk 0:01:54]}  Rd6+ {[%clk 0:00:21]} 60. Kg5 {[%clk 0:01:53]}  Rd5+ {[%clk 0:00:21]} 61. Kf6 {[%clk 0:01:53]}  Rd6+ {[%clk 0:00:21]} 62. Kg5 {[%clk 0:01:54]}  Rd5+ {[%clk 0:00:21]} 63. Kh6 {[%clk 0:01:52]}  Rd6+ {[%clk 0:00:21]} 64. Kxh5 {[%clk 0:01:52]}  Kg7 {[%clk 0:00:20]} 65. Rg2+ {[%clk 0:01:51]}  Rg6 {[%clk 0:00:20]} 66. Ra2 {[%clk 0:01:49]}  Rh6+ {[%clk 0:00:20]} 67. Kg5 {[%clk 0:01:50]}  Rg6+ {[%clk 0:00:21]} 68. Kf5 {[%clk 0:01:50]}  Rf6+ {[%clk 0:00:21]} 69. Kg4 {[%clk 0:01:51]}  Rg6+ {[%clk 0:00:21]} 70. Kh3 {[%clk 0:01:51]}  Rf6 {[%clk 0:00:21]} 71. Rg2+ {[%clk 0:01:49]}  Rg6 {[%clk 0:00:21]} 72. Rd2 {[%clk 0:01:50]}  Rf6 {[%clk 0:00:21]} 73. h5 {[%clk 0:01:50]}  Rf5 {[%clk 0:00:20]} 74. Kg4 {[%clk 0:01:50]}  Re5 {[%clk 0:00:20]} 75. Rd6 {[%clk 0:01:50]}  f6 {[%clk 0:00:20]} 76. Ra6 {[%clk 0:01:45]}  Re4+ {[%clk 0:00:19]} 77. Kf5 {[%clk 0:01:44]}  Re5+ {[%clk 0:00:19]} 78. Kg4 {[%clk 0:01:45]}  Re4+ {[%clk 0:00:20]} 79. Kg3 {[%clk 0:01:45]}  Re5 {[%clk 0:00:19]} 80. Kg4 {[%clk 0:01:44]} 1/2-1/2


[Site "https://www.chess.com"]

[Event "Titled Tuesday Blitz August 02 Early 2022"]
[White "Ramirez Vido, Robert Yorisan"]
[Black "Koelle, Tobias"]
[WhiteFideId "3513823"]
[BlackFideId "16207378"]
[WhiteElo "2448"]
[BlackElo "2541"]
[Result "0-1"]
[Round "09"]
[TimeControl "180+1"]
[Date "2022.08.02"]
[WhiteClock "0:00:01"]
[BlackClock "0:00:04"]

1. Nf3 {[%clk 0:02:40]}  g6 {[%clk 0:03:00]} 2. g3 {[%clk 0:02:39]}  Bg7 {[%clk 0:03:00]} 3. Bg2 {[%clk 0:02:40]}  e5 {[%clk 0:03:00]} 4. O-O {[%clk 0:02:41]}  d5 {[%clk 0:03:00]} 5. d3 {[%clk 0:02:40]}  Nc6 {[%clk 0:02:59]} 6. e4 {[%clk 0:02:40]}  Nge7 {[%clk 0:02:55]} 7. Nc3 {[%clk 0:02:40]}  d4 {[%clk 0:02:51]} 8. Ne2 {[%clk 0:02:40]}  O-O {[%clk 0:02:51]} 9. Ne1 {[%clk 0:02:39]}  Be6 {[%clk 0:02:32]} 10. h3 {[%clk 0:02:37]}  Qd7 {[%clk 0:02:32]} 11. Kh2 {[%clk 0:02:36]}  Nb4 {[%clk 0:02:29]} 12. a3 {[%clk 0:02:35]}  Na6 {[%clk 0:02:29]} 13. f4 {[%clk 0:02:34]}  c5 {[%clk 0:02:30]} 14. Nf3 {[%clk 0:02:33]}  f6 {[%clk 0:02:27]} 15. g4 {[%clk 0:02:31]}  h6 {[%clk 0:02:20]} 16. f5 {[%clk 0:02:30]}  gxf5 {[%clk 0:02:17]} 17. gxf5 {[%clk 0:02:25]}  Bf7 {[%clk 0:02:17]} 18. Rg1 {[%clk 0:02:25]}  Kh7 {[%clk 0:02:15]} 19. Nh4 {[%clk 0:02:25]}  Rg8 {[%clk 0:02:14]} 20. Ng3 {[%clk 0:02:24]}  c4 {[%clk 0:02:11]} 21. Bf3 {[%clk 0:02:21]}  cxd3 {[%clk 0:02:10]} 22. cxd3 {[%clk 0:02:21]}  Nc5 {[%clk 0:02:07]} 23. Bh5 {[%clk 0:02:16]}  Qe8 {[%clk 0:02:06]} 24. b4 {[%clk 0:02:11]}  Nb3 {[%clk 0:02:03]} 25. Rb1 {[%clk 0:01:43]}  Nxc1 {[%clk 0:01:59]} 26. Rxc1 {[%clk 0:01:44]}  Bh8 {[%clk 0:01:49]} 27. Rc7 {[%clk 0:01:41]}  Rc8 {[%clk 0:01:45]} 28. Rxb7 {[%clk 0:01:27]}  Rg5 {[%clk 0:01:10]} 29. Bg6+ {[%clk 0:01:03]}  Kg8 {[%clk 0:01:08]} 30. Nh5 {[%clk 0:00:53]}  Rc3 {[%clk 0:00:43]} 31. Bxf7+ {[%clk 0:00:48]}  Qxf7 {[%clk 0:00:43]} 32. Rxg5+ {[%clk 0:00:45]}  hxg5 {[%clk 0:00:42]} 33. Ng6 {[%clk 0:00:40]}  Qa2+ {[%clk 0:00:41]} 34. Kh1 {[%clk 0:00:34]}  Rc2 {[%clk 0:00:23]} 35. Nxe7+ {[%clk 0:00:25]}  Kf8 {[%clk 0:00:22]} 36. Qg1 {[%clk 0:00:21]}  Qb2 {[%clk 0:00:20]} 37. Ng6+ {[%clk 0:00:19]}  Ke8 {[%clk 0:00:18]} 38. Nxh8 {[%clk 0:00:16]}  Kd8 {[%clk 0:00:14]} 39. Nxf6 {[%clk 0:00:14]}  Kc8 {[%clk 0:00:13]} 40. Rxa7 {[%clk 0:00:11]}  Rc1 {[%clk 0:00:14]} 41. Nf7 {[%clk 0:00:10]}  Rxg1+ {[%clk 0:00:14]} 42. Kxg1 {[%clk 0:00:10]}  Qc1+ {[%clk 0:00:13]} 43. Kg2 {[%clk 0:00:10]}  Qd2+ {[%clk 0:00:13]} 44. Kg3 {[%clk 0:00:09]}  Qf4+ {[%clk 0:00:13]} 45. Kg2 {[%clk 0:00:09]}  Kb8 {[%clk 0:00:12]} 46. Rd7 {[%clk 0:00:07]}  Qd2+ {[%clk 0:00:13]} 47. Kg3 {[%clk 0:00:07]}  Qf4+ {[%clk 0:00:10]} 48. Kg2 {[%clk 0:00:07]}  Qe3 {[%clk 0:00:07]} 49. Nd6 {[%clk 0:00:03]}  Qxd3 {[%clk 0:00:06]} 50. Rb7+ {[%clk 0:00:03]}  Ka8 {[%clk 0:00:07]} 51. Nd5 {[%clk 0:00:03]}  Qd2+ {[%clk 0:00:08]} 52. Kg3 {[%clk 0:00:03]}  Qe1+ {[%clk 0:00:04]} 53. Kg4 {[%clk 0:00:03]}  Qh4+ {[%clk 0:00:04]} 54. Kf3 {[%clk 0:00:03]}  Qxh3+ {[%clk 0:00:05]} 55. Ke2 {[%clk 0:00:04]}  Qg2+ {[%clk 0:00:04]} 56. Kd3 {[%clk 0:00:04]}  Qf1+ {[%clk 0:00:05]} 57. Kc2 {[%clk 0:00:05]}  Qe2+ {[%clk 0:00:05]} 58. Kb3 {[%clk 0:00:05]}  Qd3+ {[%clk 0:00:03]} 59. Ka4 {[%clk 0:00:05]}  Qa6+ {[%clk 0:00:04]} 60. Kb3 {[%clk 0:00:04]}  Qxd6 {[%clk 0:00:04]} 61. Rb5 {[%clk 0:00:03]}  Qc6 {[%clk 0:00:04]} 62. Ra5+ {[%clk 0:00:02]}  Kb7 {[%clk 0:00:03]} 63. Rc5 {[%clk 0:00:02]}  Qh6 {[%clk 0:00:04]} 64. Rc7+ {[%clk 0:00:02]}  Kb8 {[%clk 0:00:04]} 65. f6 {[%clk 0:00:02]}  Qh3+ {[%clk 0:00:03]} 66. Ka4 {[%clk 0:00:02]}  Qf3 {[%clk 0:00:04]} 67. f7 {[%clk 0:00:03]}  d3 {[%clk 0:00:04]} 68. Re7 {[%clk 0:00:03]}  d2 {[%clk 0:00:04]} 69. Re8+ {[%clk 0:00:04]}  Kb7 {[%clk 0:00:05]} 70. Re7+ {[%clk 0:00:04]}  Kc6 {[%clk 0:00:05]} 71. Rc7+ {[%clk 0:00:04]}  Kd6 {[%clk 0:00:05]} 72. f8=Q+ {[%clk 0:00:04]}  Qxf8 {[%clk 0:00:04]} 73. Nb6 {[%clk 0:00:01]}  d1=Q+ {[%clk 0:00:04]} 0-1


[Site "https://www.chess.com"]

[Event "Titled Tuesday Blitz August 02 Early 2022"]
[White "Salem, A.R. Saleh"]
[Black "Martinez Alcantara, Jose Eduardo"]
[WhiteFideId "9301348"]
[BlackFideId "3805662"]
[WhiteElo "2679"]
[BlackElo "2703"]
[Result "0-1"]
[Round "09"]
[TimeControl "180+1"]
[Date "2022.08.02"]
[WhiteClock "0:00:15"]
[BlackClock "0:00:06"]

1. d4 {[%clk 0:03:00]}  Nf6 {[%clk 0:03:00]} 2. c4 {[%clk 0:03:00]}  e6 {[%clk 0:03:01]} 3. Nf3 {[%clk 0:03:00]}  d5 {[%clk 0:03:00]} 4. Nc3 {[%clk 0:03:00]}  a6 {[%clk 0:03:00]} 5. e3 {[%clk 0:02:59]}  Nbd7 {[%clk 0:02:58]} 6. b3 {[%clk 0:02:47]}  b6 {[%clk 0:02:58]} 7. Bd3 {[%clk 0:02:44]}  Bb7 {[%clk 0:02:58]} 8. O-O {[%clk 0:02:43]}  Be7 {[%clk 0:02:57]} 9. cxd5 {[%clk 0:02:43]}  exd5 {[%clk 0:02:57]} 10. Ne5 {[%clk 0:02:43]}  O-O {[%clk 0:02:53]} 11. Bb2 {[%clk 0:02:35]}  Re8 {[%clk 0:02:45]} 12. Rc1 {[%clk 0:02:29]}  Bf8 {[%clk 0:02:39]} 13. f4 {[%clk 0:02:28]}  c5 {[%clk 0:02:39]} 14. Qf3 {[%clk 0:02:18]}  b5 {[%clk 0:02:17]} 15. Qh3 {[%clk 0:02:17]}  g6 {[%clk 0:02:10]} 16. dxc5 {[%clk 0:01:56]}  Nxc5 {[%clk 0:01:51]} 17. Bb1 {[%clk 0:01:56]}  Rc8 {[%clk 0:01:36]} 18. Rcd1 {[%clk 0:01:47]}  Bg7 {[%clk 0:01:29]} 19. b4 {[%clk 0:01:40]}  Ncd7 {[%clk 0:01:19]} 20. Ne2 {[%clk 0:01:13]}  Qe7 {[%clk 0:01:18]} 21. Ng3 {[%clk 0:01:08]}  Qxb4 {[%clk 0:01:10]} 22. Bd4 {[%clk 0:01:09]}  Qe7 {[%clk 0:01:07]} 23. Nf5 {[%clk 0:01:05]}  gxf5 {[%clk 0:01:05]} 24. Bxf5 {[%clk 0:01:06]}  Nf8 {[%clk 0:01:04]} 25. Rf3 {[%clk 0:00:51]}  Ne4 {[%clk 0:01:03]} 26. Bxe4 {[%clk 0:00:49]}  dxe4 {[%clk 0:01:04]} 27. Rg3 {[%clk 0:00:49]}  Ng6 {[%clk 0:00:42]} 28. Ng4 {[%clk 0:00:50]}  Bxd4 {[%clk 0:00:20]} 29. exd4 {[%clk 0:00:49]}  Kh8 {[%clk 0:00:16]} 30. Nh6 {[%clk 0:00:25]}  e3 {[%clk 0:00:14]} 31. Nf5 {[%clk 0:00:18]}  e2 {[%clk 0:00:13]} 32. Re1 {[%clk 0:00:18]}  Rc1 {[%clk 0:00:12]} 33. Nxe7 {[%clk 0:00:15]}  Rxe1+ {[%clk 0:00:12]} 34. Kf2 {[%clk 0:00:16]}  Rf1+ {[%clk 0:00:10]} 35. Kxe2 {[%clk 0:00:16]}  Nxf4+ {[%clk 0:00:10]} 36. Kxf1 {[%clk 0:00:17]}  Nxh3 {[%clk 0:00:10]} 37. Nf5 {[%clk 0:00:14]}  Nf4 {[%clk 0:00:08]} 38. Nd6 {[%clk 0:00:14]}  Re7 {[%clk 0:00:08]} 39. Nf5 {[%clk 0:00:14]}  Rd7 {[%clk 0:00:08]} 40. Nh6 {[%clk 0:00:14]}  Ng6 {[%clk 0:00:08]} 41. h4 {[%clk 0:00:14]}  Kg7 {[%clk 0:00:05]} 42. Ng4 {[%clk 0:00:14]}  h5 {[%clk 0:00:04]} 43. Ne3 {[%clk 0:00:15]}  Kf8 {[%clk 0:00:03]} 44. Nf5 {[%clk 0:00:14]}  Rd5 {[%clk 0:00:03]} 45. Nh6 {[%clk 0:00:14]}  Rxd4 {[%clk 0:00:03]} 46. Rc3 {[%clk 0:00:15]}  Rd7 {[%clk 0:00:03]} 47. Nf5 {[%clk 0:00:14]}  Be4 {[%clk 0:00:03]} 48. Ng3 {[%clk 0:00:15]}  Bd5 {[%clk 0:00:04]} 49. Nxh5 {[%clk 0:00:15]}  Bxa2 {[%clk 0:00:04]} 50. Nf6 {[%clk 0:00:15]}  Rd6 {[%clk 0:00:04]} 51. Rc8+ {[%clk 0:00:13]}  Ke7 {[%clk 0:00:04]} 52. Ng8+ {[%clk 0:00:13]}  Kd7 {[%clk 0:00:05]} 53. Ra8 {[%clk 0:00:14]}  Nxh4 {[%clk 0:00:04]} 54. Ra7+ {[%clk 0:00:14]}  Kd8 {[%clk 0:00:05]} 55. Ra8+ {[%clk 0:00:13]}  Kc7 {[%clk 0:00:05]} 56. Ne7 {[%clk 0:00:14]}  Kb7 {[%clk 0:00:05]} 57. Rh8 {[%clk 0:00:13]}  Ng6 {[%clk 0:00:05]} 58. Re8 {[%clk 0:00:14]}  Nxe7 {[%clk 0:00:05]} 59. Rxe7+ {[%clk 0:00:15]}  Kb6 {[%clk 0:00:06]} 0-1


[Site "https://www.chess.com"]

[Event "Titled Tuesday Blitz August 02 Early 2022"]
[White "Vakhlamov, Igor L."]
[Black "Aggelis, Nikolaos"]
[WhiteFideId "24126748"]
[BlackFideId "4213220"]
[WhiteElo "2401"]
[BlackElo "2154"]
[Result "1-0"]
[Round "09"]
[TimeControl "180+1"]
[Date "2022.08.02"]
[WhiteClock "0:00:16"]
[BlackClock "0:00:02"]

1. e4 {[%clk 0:03:00]}  c5 {[%clk 0:02:59]} 2. Nf3 {[%clk 0:03:00]}  d6 {[%clk 0:02:57]} 3. Nc3 {[%clk 0:03:00]}  Nf6 {[%clk 0:02:56]} 4. d4 {[%clk 0:03:01]}  cxd4 {[%clk 0:02:57]} 5. Qxd4 {[%clk 0:03:02]}  e5 {[%clk 0:02:55]} 6. Bb5+ {[%clk 0:03:00]}  Nbd7 {[%clk 0:02:50]} 7. Qd3 {[%clk 0:02:57]}  h6 {[%clk 0:02:50]} 8. Be3 {[%clk 0:02:57]}  a6 {[%clk 0:02:47]} 9. Bc4 {[%clk 0:02:55]}  b5 {[%clk 0:02:46]} 10. Bd5 {[%clk 0:02:47]}  Rb8 {[%clk 0:02:27]} 11. Ba7 {[%clk 0:02:39]}  Nxd5 {[%clk 0:02:22]} 12. Nxd5 {[%clk 0:02:25]}  Nc5 {[%clk 0:02:16]} 13. Bxc5 {[%clk 0:02:20]}  dxc5 {[%clk 0:02:13]} 14. Nxe5 {[%clk 0:02:20]}  Be6 {[%clk 0:02:09]} 15. Nc6 {[%clk 0:02:18]}  Qc8 {[%clk 0:02:00]} 16. Nxb8 {[%clk 0:02:17]}  Qxb8 {[%clk 0:02:01]} 17. Rd1 {[%clk 0:02:12]}  c4 {[%clk 0:01:57]} 18. Qd4 {[%clk 0:02:10]}  Bd6 {[%clk 0:00:55]} 19. Qxg7 {[%clk 0:01:42]}  Be5 {[%clk 0:00:45]} 20. Nf6+ {[%clk 0:01:09]}  Ke7 {[%clk 0:00:44]} 21. f4 {[%clk 0:00:56]}  Bxf6 {[%clk 0:00:40]} 22. Qg3 {[%clk 0:00:56]}  Rg8 {[%clk 0:00:37]} 23. Qf2 {[%clk 0:00:53]}  Bg4 {[%clk 0:00:30]} 24. e5 {[%clk 0:00:51]}  Bxe5 {[%clk 0:00:20]} 25. fxe5 {[%clk 0:00:41]}  Qxe5+ {[%clk 0:00:18]} 26. Kd2 {[%clk 0:00:41]}  Rd8+ {[%clk 0:00:16]} 27. Kc1 {[%clk 0:00:41]}  Rxd1+ {[%clk 0:00:17]} 28. Rxd1 {[%clk 0:00:41]}  Bxd1 {[%clk 0:00:18]} 29. Kxd1 {[%clk 0:00:42]}  Qd6+ {[%clk 0:00:18]} 30. Ke1 {[%clk 0:00:35]}  Qxh2 {[%clk 0:00:17]} 31. Qa7+ {[%clk 0:00:35]}  Kf8 {[%clk 0:00:17]} 32. Qxa6 {[%clk 0:00:34]}  Qg1+ {[%clk 0:00:15]} 33. Kd2 {[%clk 0:00:34]}  Qxg2+ {[%clk 0:00:15]} 34. Kc3 {[%clk 0:00:35]}  h5 {[%clk 0:00:11]} 35. Qh6+ {[%clk 0:00:34]}  Ke7 {[%clk 0:00:10]} 36. Qxh5 {[%clk 0:00:34]}  Qg3+ {[%clk 0:00:08]} 37. Kb4 {[%clk 0:00:34]}  Qf2 {[%clk 0:00:06]} 38. Qe5+ {[%clk 0:00:32]}  Kf8 {[%clk 0:00:06]} 39. Qh8+ {[%clk 0:00:29]}  Ke7 {[%clk 0:00:06]} 40. Qe5+ {[%clk 0:00:30]}  Kf8 {[%clk 0:00:06]} 41. Kxb5 {[%clk 0:00:28]}  Qxc2 {[%clk 0:00:05]} 42. Qh8+ {[%clk 0:00:28]}  Ke7 {[%clk 0:00:05]} 43. Qe5+ {[%clk 0:00:29]}  Kf8 {[%clk 0:00:06]} 44. Qc3 {[%clk 0:00:26]}  Qd3 {[%clk 0:00:03]} 45. a4 {[%clk 0:00:22]}  f5 {[%clk 0:00:02]} 46. a5 {[%clk 0:00:19]}  f4 {[%clk 0:00:03]} 47. Qf6+ {[%clk 0:00:16]}  Ke8 {[%clk 0:00:03]} 48. Qe5+ {[%clk 0:00:16]}  Kd7 {[%clk 0:00:02]} 49. Qxf4 {[%clk 0:00:16]}  Qc3 {[%clk 0:00:02]} 50. bxc3 {[%clk 0:00:16]} 1-0


[Site "https://www.chess.com"]

[Event "Titled Tuesday Blitz August 02 Early 2022"]
[White "Xu, Yi"]
[Black "Cruz, Jonathan"]
[WhiteFideId "8605564"]
[BlackFideId "3802124"]
[WhiteElo "2471"]
[BlackElo "2406"]
[Result "1-0"]
[Round "09"]
[TimeControl "180+1"]
[Date "2022.08.02"]
[WhiteClock "0:00:11"]
[BlackClock "0:00:05"]

1. e4 {[%clk 0:02:59]}  e5 {[%clk 0:02:51]} 2. Nf3 {[%clk 0:02:59]}  Nc6 {[%clk 0:02:51]} 3. Bc4 {[%clk 0:02:59]}  Be7 {[%clk 0:02:50]} 4. O-O {[%clk 0:02:59]}  Nf6 {[%clk 0:02:49]} 5. d3 {[%clk 0:02:59]}  O-O {[%clk 0:02:49]} 6. Nc3 {[%clk 0:02:58]}  d6 {[%clk 0:02:49]} 7. a3 {[%clk 0:02:57]}  Be6 {[%clk 0:02:48]} 8. Re1 {[%clk 0:02:52]}  Qd7 {[%clk 0:02:47]} 9. h3 {[%clk 0:02:51]}  Rae8 {[%clk 0:02:44]} 10. Nd5 {[%clk 0:02:46]}  Bd8 {[%clk 0:02:44]} 11. c3 {[%clk 0:02:35]}  a6 {[%clk 0:02:40]} 12. Ba2 {[%clk 0:02:20]}  Bxd5 {[%clk 0:02:39]} 13. exd5 {[%clk 0:02:19]}  Ne7 {[%clk 0:02:40]} 14. d4 {[%clk 0:02:07]}  e4 {[%clk 0:02:37]} 15. Nd2 {[%clk 0:02:06]}  Nexd5 {[%clk 0:02:23]} 16. Bxd5 {[%clk 0:01:54]}  Nxd5 {[%clk 0:02:24]} 17. Rxe4 {[%clk 0:01:49]}  f5 {[%clk 0:02:19]} 18. Rxe8 {[%clk 0:01:47]}  Rxe8 {[%clk 0:02:20]} 19. Nf3 {[%clk 0:01:48]}  Qe6 {[%clk 0:01:57]} 20. Bd2 {[%clk 0:01:43]}  b5 {[%clk 0:01:52]} 21. Qb3 {[%clk 0:01:36]}  Nb6 {[%clk 0:01:49]} 22. Qxe6+ {[%clk 0:01:35]}  Rxe6 {[%clk 0:01:50]} 23. Kf1 {[%clk 0:01:33]}  Nc4 {[%clk 0:01:48]} 24. a4 {[%clk 0:01:28]}  Nxb2 {[%clk 0:01:38]} 25. axb5 {[%clk 0:01:26]}  axb5 {[%clk 0:01:26]} 26. Ra8 {[%clk 0:01:25]}  Re8 {[%clk 0:01:26]} 27. Bg5 {[%clk 0:01:25]}  Bxg5 {[%clk 0:01:25]} 28. Rxe8+ {[%clk 0:01:24]}  Kf7 {[%clk 0:01:25]} 29. Rc8 {[%clk 0:01:15]}  Be7 {[%clk 0:01:19]} 30. Rxc7 {[%clk 0:01:12]}  h6 {[%clk 0:01:16]} 31. Rb7 {[%clk 0:01:11]}  Na4 {[%clk 0:01:16]} 32. Rxb5 {[%clk 0:01:10]}  Nxc3 {[%clk 0:01:14]} 33. Rxf5+ {[%clk 0:01:10]}  Bf6 {[%clk 0:01:15]} 34. Ra5 {[%clk 0:01:06]}  Ke6 {[%clk 0:01:14]} 35. g4 {[%clk 0:01:02]}  Nd5 {[%clk 0:01:12]} 36. h4 {[%clk 0:01:00]}  g5 {[%clk 0:01:06]} 37. hxg5 {[%clk 0:01:00]}  hxg5 {[%clk 0:01:07]} 38. Ra1 {[%clk 0:00:54]}  Nf4 {[%clk 0:01:05]} 39. Ra5 {[%clk 0:00:50]}  Nd5 {[%clk 0:00:59]} 40. Ke1 {[%clk 0:00:48]}  Bd8 {[%clk 0:00:58]} 41. Rb5 {[%clk 0:00:47]}  Bf6 {[%clk 0:00:55]} 42. Kd2 {[%clk 0:00:46]}  Be7 {[%clk 0:00:54]} 43. Kc2 {[%clk 0:00:44]}  Bf6 {[%clk 0:00:53]} 44. Kb3 {[%clk 0:00:44]}  Nc7 {[%clk 0:00:48]} 45. Nxg5+ {[%clk 0:00:37]}  Kd7 {[%clk 0:00:47]} 46. Rf5 {[%clk 0:00:36]}  Bxd4 {[%clk 0:00:47]} 47. Kc4 {[%clk 0:00:32]}  Bb6 {[%clk 0:00:44]} 48. Rf7+ {[%clk 0:00:26]}  Kc6 {[%clk 0:00:44]} 49. Re7 {[%clk 0:00:23]}  d5+ {[%clk 0:00:44]} 50. Kd3 {[%clk 0:00:23]}  Kd6 {[%clk 0:00:44]} 51. Re2 {[%clk 0:00:22]}  Na6 {[%clk 0:00:42]} 52. Re6+ {[%clk 0:00:22]}  Kc7 {[%clk 0:00:41]} 53. Rf6 {[%clk 0:00:20]}  Nc5+ {[%clk 0:00:40]} 54. Ke2 {[%clk 0:00:19]}  Nd7 {[%clk 0:00:37]} 55. Ne6+ {[%clk 0:00:18]}  Kd6 {[%clk 0:00:34]} 56. Rh6 {[%clk 0:00:18]}  Ke5 {[%clk 0:00:30]} 57. Nf8 {[%clk 0:00:15]}  Nxf8 {[%clk 0:00:15]} 58. Rxb6 {[%clk 0:00:16]}  Nd7 {[%clk 0:00:15]} 59. Rc6 {[%clk 0:00:16]}  Kf4 {[%clk 0:00:13]} 60. Rd6 {[%clk 0:00:11]}  Ne5 {[%clk 0:00:05]} 61. f3 {[%clk 0:00:11]} 1-0


[Site "https://www.chess.com"]